bitfinex-derivatives/quotes_SOLF0:USTF0_20250819
["timestamp","ask_amount","ask_price","bid_price","bid_amount"]
[1755594244401,3.15,180.82,180.75,3.67960433]
[1755594244599,3.15,180.82,180.8,2.21]
[1755594244792,3.15,180.82,180.76,5.5298]
[1755594244997,3.15,180.82,180.79,2.21]
[1755594246095,3.15,180.86,180.76,2.21]
[1755594246296,3.15,180.84,180.76,2.21]
[1755594246600,3.15,180.82,180.76,2.21]
[1755594247799,3.15,180.86,180.78,2.21]
[1755594248100,4.38686475,180.85,180.78,2.21]
[1755594248295,4.38686475,180.84,180.78,2.21]
[1755594248491,4.38686475,180.83,180.78,2.21]
[1755594248697,3.15,180.83,180.79,2.21]
[1755594248897,3.15,180.83,180.8,2.21]
[1755594249308,3.15,180.86,180.79,2.21]
[1755594249601,4.38697619,180.85,180.79,2.21]
[1755594249803,4.38697619,180.84,180.78,9.20880433]
[1755594250103,3.15,180.84,180.81,2.21]
[1755594250494,3.15,180.84,180.82,2.21]
[1755594251406,3.15,180.84,180.79,2.22]
[1755594251701,3.15,180.84,180.8,2.22]
[1755594253103,3.15,180.83,180.8,2.22]
[1755594253506,3.15,180.83,180.81,2.22]
[1755594253900,3.15,180.83,180.78,3.67960433]
[1755594254101,121.56011461,180.87,180.79,2.22]
[1755594254303,7.53385014,180.86,180.79,2.22]
[1755594254501,3.15,180.86,180.79,2.22]
[1755594256408,3.15,180.86,180.76,5.89960433]
[1755594257411,140.09960433,180.88,180.76,2.22]
[1755594257412,3.15,180.84,180.76,2.22]
[1755594257611,3.15,180.82,180.76,2.22]
[1755594258608,3.15,180.87,180.77,2.22]
[1755594258813,4.36447752,180.86,180.77,2.22]
[1755594259012,3.15,180.87,180.77,2.22]
[1755594259205,3.15,180.85,180.77,7.7495]
[1755594260112,3.15,180.85,180.77,2.22]
[1755594261216,3.15,180.85,180.77,7.7496]
[1755594261712,3.15,180.85,180.77,2.22]
[1755594261903,3.15,180.83,180.74,2.22]
[1755594262299,3.15,180.83,180.74,7.7505]
[1755594262503,3.15,180.83,180.75,2.22]
[1755594262915,3.15,180.83,180.79,2.22]
[1755594263117,3.15,180.83,180.8,2.22]
[1755594263417,2.94,180.87,180.76,3.67960433]
[1755594263614,2.94,180.85,180.75,2.22]
[1755594263811,2.94,180.83,180.75,2.22]
[1755594264816,2.94,180.83,180.76,3.67960433]
[1755594265118,2.94,180.83,180.77,2.22]
[1755594265409,2.94,180.83,180.77,7.7496]
[1755594266013,2.94,180.83,180.78,2.22]
[1755594266212,139.36,180.88,180.78,2.22]
[1755594266418,7.30696413,180.87,180.78,7.7494]
[1755594266716,2.94,180.87,180.78,7.7494]
[1755594267119,2.94,180.87,180.79,11.42860433]
[1755594268522,2.94,180.87,180.79,5.89960433]
[1755594270120,4.36808874,180.86,180.79,5.89960433]
[1755594270324,2.94,180.87,180.79,5.89960433]
[1755594270524,2.94,180.87,180.79,11.42860433]
[1755594271425,2.94,180.87,180.8,2.22]
[1755594271921,2.94,180.87,180.81,2.22]
[1755594275425,136.42,180.88,180.81,2.22]
[1755594275733,139.36,180.88,180.81,2.22]
[1755594278728,2.94,180.87,180.81,2.22]
[1755594279634,136.42,180.88,180.81,2.22]
[1755594282542,136.42,180.88,180.81,7.7482]
[1755594282744,2.94,180.89,180.81,2.22]
[1755594283139,2.94,180.87,180.81,2.22]
[1755594283341,2.94,180.87,180.79,4.59810282]
[1755594283640,2.94,180.85,180.77,8.27770715]
[1755594283844,2.94,180.83,180.77,3.67960433]
[1755594285942,2.94,180.83,180.79,2.22]
[1755594286136,2.94,180.83,180.8,2.22]
[1755594288646,136.14,180.87,180.8,2.22]
[1755594288846,9.98968044,180.86,180.8,2.22]
[1755594289046,4.39410967,180.85,180.8,2.22]
[1755594289243,7.33410967,180.84,180.8,2.22]
[1755594289442,2.94,180.86,180.78,4.59810282]
[1755594289750,2.94,180.84,180.78,4.59810282]
[1755594291952,2.94,180.82,180.76,4.59810282]
[1755594292150,2.94,180.82,180.75,4.59810282]
[1755594292346,4.39512841,180.81,180.74,6.81810282]
[1755594292550,7.315362,180.8,180.74,6.81810282]
[1755594292744,4.39548121,180.79,180.72,4.59810282]
[1755594293050,7.31548121,180.78,180.71,6.81810282]
[1755594293252,2.92,180.78,180.71,6.81810282]
[1755594293453,2.92,180.78,180.71,10.49770715]
[1755594293748,2.92,180.78,180.72,6.81810282]
[1755594293947,2.92,180.78,180.73,4.59810282]
[1755594294147,2.92,180.78,180.75,2.22]
[1755594295149,2.92,180.83,180.76,2.22]
[1755594295348,4.3927384,180.82,180.76,2.22]
[1755594295553,2.92,180.83,180.76,2.22]
[1755594295750,4.39181878,180.82,180.76,2.22]
[1755594295954,2.92,180.83,180.77,3.67960433]
[1755594296153,4.39181878,180.82,180.79,2.22]
[1755594296357,2.92,180.83,180.77,3.67960433]
[1755594296559,4.39143059,180.82,180.8,2.22]
[1755594296755,2.92,180.86,180.81,2.22]
[1755594296964,2.92,180.84,180.81,2.22]
[1755594298653,136.12,180.88,180.77,8.27770715]
[1755594298861,2.92,180.86,180.78,2.22]
[1755594299053,4.39058711,180.85,180.78,2.22]
[1755594299251,2.92,180.83,180.75,4.59810282]
[1755594299449,2.92,180.81,180.72,4.59810282]
[1755594299655,2.92,180.79,180.71,8.27770715]
[1755594300562,2.92,180.79,180.71,4.59810282]
[1755594301463,2.92,180.79,180.72,2.22]
[1755594301753,536.06846446,180.91,180.72,2.22]
[1755594301754,2.92,180.83,180.74,5.89960433]
[1755594301960,2.92,180.83,180.75,4.59810282]
[1755594302265,2.92,180.83,180.76,2.22]
[1755594303161,136.1,180.91,180.78,2.22]
[1755594303162,2.92,180.87,180.78,2.22]
[1755594303362,4.39082012,180.86,180.78,2.22]
[1755594303556,4.39082012,180.85,180.78,2.22]
[1755594303759,4.39082012,180.84,180.78,2.22]
[1755594303956,2.92,180.85,180.78,2.22]
[1755594304157,4.39082012,180.84,180.78,2.22]
[1755594304357,2.92,180.85,180.78,2.22]
[1755594304656,4.39081087,180.84,180.78,2.22]
[1755594304858,2.92,180.85,180.78,2.22]
[1755594305057,4.39081087,180.84,180.78,2.22]
[1755594305256,2.92,180.85,180.78,2.22]
[1755594305456,4.39081807,180.84,180.78,2.22]
[1755594305660,2.92,180.85,180.78,2.22]
[1755594305956,4.39081807,180.84,180.78,2.22]
[1755594306163,2.92,180.85,180.78,2.22]
[1755594306364,4.39082533,180.84,180.78,2.22]
[1755594306661,2.92,180.85,180.78,2.22]
[1755594308553,4.39112666,180.84,180.78,2.22]
[1755594308757,2.92,180.85,180.78,2.22]
[1755594309162,4.39112663,180.84,180.78,2.22]
[1755594309360,2.92,180.85,180.78,2.22]
[1755594309562,4.39136834,180.84,180.78,2.22]
[1755594309866,2.92,180.85,180.78,2.22]
[1755594310061,4.39136834,180.84,180.78,2.22]
[1755594310262,2.92,180.85,180.78,2.22]
[1755594310564,4.39154238,180.84,180.78,7.7493]
[1755594310760,2.92,180.85,180.78,7.7493]
[1755594310962,4.39154238,180.84,180.78,7.7493]
[1755594311157,2.92,180.85,180.78,2.22]
[1755594311360,4.39154461,180.84,180.78,2.22]
[1755594311560,2.92,180.85,180.78,2.22]
[1755594311761,2.92,180.83,180.78,2.22]
[1755594311960,142.31400722,180.91,180.78,2.22]
[1755594311961,2.92,180.82,180.78,2.22]
[1755594312662,2.92,180.82,180.77,3.67960433]
[1755594312967,2.92,180.9,180.78,2.22]
[1755594313158,2.92,180.88,180.78,2.22]
[1755594313357,2.92,180.86,180.78,2.22]
[1755594313562,4.39155028,180.85,180.78,2.22]
[1755594314167,4.39155028,180.85,180.78,7.7493]
[1755594315870,2.92,180.86,180.78,12.34740282]
[1755594316769,2.92,180.86,180.8,5.89960433]
[1755594316962,2.92,180.89,180.81,2.22]
[1755594317168,7.03374466,180.88,180.81,2.22]
[1755594317471,4.38920352,180.87,180.81,2.22]
[1755594317666,136.04,180.92,180.85,2.22]
[1755594317864,9.95279182,180.91,180.85,2.22]
[1755594318064,7.30856166,180.9,180.83,3.67960433]
[1755594318367,2.92,180.9,180.83,3.67960433]
[1755594318572,4.38808189,180.89,180.83,3.67960433]
[1755594318868,7.3080819,180.88,180.84,2.22]
[1755594319068,2.92,180.88,180.84,2.22]
[1755594320564,2.92,180.88,180.85,2.22]
[1755594320763,136.04,180.92,180.83,3.67960433]
[1755594320965,2.92,180.9,180.83,3.67960433]
[1755594321163,4.38698553,180.89,180.85,2.22]
[1755594321364,2.92,180.94,180.86,2.22]
[1755594321560,7.02967597,180.93,180.86,2.22]
[1755594321765,9.94967597,180.92,180.86,2.22]
[1755594322073,2.92,180.9,180.86,2.22]
[1755594322370,7.28661265,180.89,180.86,2.22]
[1755594322559,2.9,180.89,180.86,2.22]
[1755594322971,371.56,180.95,180.86,3.67960433]
[1755594322972,2.9,180.94,180.86,3.67960433]
[1755594323265,7.02840316,180.93,180.86,5.89960433]
[1755594323464,2.9,180.91,180.86,5.89960433]
[1755594323668,2.9,180.9,180.86,5.89960433]
[1755594324473,2.9,180.94,180.86,5.89960433]
[1755594324772,2.9,180.92,180.86,5.89960433]
[1755594324969,2.9,180.9,180.86,5.89960433]
[1755594327168,371.56,180.95,180.87,2.22]
[1755594327370,7.02268968,180.94,180.87,2.22]
[1755594327570,2.9,180.9,180.87,2.22]
[1755594330772,2.9,180.94,180.87,2.22]
[1755594331575,2.9,180.94,180.78,9.19454522]
[1755594331576,3.67960433,181.01,180.89,3.67960433]
[1755594331766,2.9,180.99,180.89,3.67960433]
[1755594331971,2.9,180.97,180.89,3.67960433]
[1755594332172,4.37796315,180.96,180.89,5.89960433]
[1755594332483,7.27796315,180.95,180.91,2.22]
[1755594332775,2.9,180.95,180.91,2.22]
[1755594333177,2.9,180.99,180.9,2.22]
[1755594333378,7.27479336,180.98,180.9,2.22]
[1755594333575,2.9,180.98,180.9,2.22]
[1755594334178,2.9,180.98,180.9,7.7455]
[1755594334375,2.9,180.98,180.9,2.22]
[1755594334568,2.9,180.98,180.93,2.22]
[1755594334772,2.9,180.98,180.92,9.20470433]
[1755594334972,2.9,180.98,180.93,2.22]
[1755594335171,6.1947445,181.07,180.93,2.22]
[1755594335172,3.67960433,181.07,180.93,7.7446]
[1755594335478,2.9,181.03,180.96,2.22]
[1755594340574,2.9,181.06,180.98,3.67960433]
[1755594341177,2.9,181.06,180.98,5.89960433]
[1755594341381,2.9,181.11,181.01,3.67960433]
[1755594341583,4.3544548,181.1,180.99,2.22]
[1755594341884,4.35496956,181.09,180.99,2.22]
[1755594342081,2.9,181.1,180.99,2.22]
[1755594342273,2.9,181.08,180.99,2.22]
[1755594346384,2.9,181.08,181.01,3.67960433]
[1755594347577,2.9,181.08,180.99,2.22]
[1755594351287,2.9,181.08,181.01,3.67960433]
[1755594352586,2.9,181.08,181.01,5.89960433]
[1755594353489,2.9,181.08,180.98,5.89960433]
[1755594353686,2.9,181.08,180.99,2.22]
[1755594353883,2.9,181.08,181.01,3.67960433]
[1755594354087,2.9,181.08,181.01,5.89960433]
[1755594354689,0.96133925,181.15,181.04,3.67960433]
[1755594354886,7.31059785,181.14,181.04,5.89960433]
[1755594355189,2.98,181.13,181.07,3.67960433]
[1755594355589,2.98,181.13,181.07,5.89960433]
[1755594356194,6.65960433,181.21,181.07,5.89960433]
[1755594356393,2.98,181.19,181.07,5.89960433]
[1755594356689,2.98,181.17,181.07,5.89960433]
[1755594359301,2.98,181.15,181.05,3.67960433]
[1755594359494,2.98,181.13,181.05,3.67960433]
[1755594360002,2.98,181.13,181.03,2.22]
[1755594360396,2.98,181.11,181.01,3.67960433]
[1755594361293,2.98,181.11,181.0,2.22]
[1755594361294,4.33076822,181.1,181.0,2.22]
[1755594361495,2.98,181.13,181.04,5.89960433]
[1755594361698,2.98,181.11,181.04,5.89960433]
[1755594362099,2.98,181.11,181.04,3.67960433]
[1755594362295,2.98,181.11,181.01,5.89960433]
[1755594362705,2.98,181.11,181.04,3.67960433]
[1755594362901,2.98,181.11,181.05,2.22]
[1755594363496,2.98,181.14,181.05,2.22]
[1755594364205,2.98,181.14,181.08,2.22]
[1755594366400,136.36,181.19,181.08,2.22]
[1755594366599,7.31254594,181.18,181.08,2.22]
[1755594366798,2.98,181.16,181.08,2.22]
[1755594367008,4.33266329,181.15,181.05,5.89960433]
[1755594367198,2.98,181.14,181.05,5.89960433]
[1755594367598,2.98,181.14,181.06,2.22]
[1755594367799,2.98,181.14,181.06,7.7409]
[1755594367998,2.98,181.17,181.07,2.22]
[1755594368194,4.33395345,181.16,181.07,2.22]
[1755594368402,4.33395345,181.15,181.07,2.22]
[1755594368601,2.98,181.17,181.07,2.22]
[1755594368803,4.33362012,181.16,181.07,2.22]
[1755594369000,2.98,181.17,181.08,3.67960433]
[1755594369202,2.98,181.17,181.09,2.22]
[1755594370099,2.98,181.17,181.1,5.5197]
[1755594370300,2.98,181.17,181.11,2.22]
[1755594370498,9.29211675,181.3,181.11,2.22]
[1755594370499,6.13476025,181.41,181.17,2.22]
[1755594370697,371.06,181.44,181.17,2.22]
[1755594370698,2.98,181.39,181.26,3.67960433]
[1755594371000,2.98,181.37,181.3,3.67960433]
[1755594371204,137.7,181.36,181.3,3.67960433]
[1755594371403,137.7,181.35,181.3,3.67960433]
[1755594371707,137.7,181.34,181.3,3.67960433]
[1755594371999,2.98,181.37,181.3,5.89960433]
[1755594372204,371.06,181.44,181.33,3.67960433]
[1755594372205,137.68,181.36,181.33,3.67960433]
[1755594372507,137.68,181.35,181.32,3.67960433]
[1755594372701,2.98,181.38,181.32,3.67960433]
[1755594372908,137.6,181.39,181.35,3.67960433]
[1755594373098,2.98,181.43,181.35,3.67960433]
[1755594373099,2.98,181.43,181.35,5.89960433]
[1755594373299,2.98,181.43,181.35,2.22]
[1755594373498,137.92,181.42,181.34,3.67960433]
[1755594373805,137.92,181.42,181.31,2.22]
[1755594373996,2.98,181.41,181.34,3.67960433]
[1755594374198,371.06,181.44,181.34,3.67960433]
[1755594374199,371.06,181.44,181.35,2.22]
[1755594374501,371.06,181.44,181.39,5.89960433]
[1755594374805,371.06,181.44,181.41,2.22]
[1755594375110,138.2,181.43,181.42,2.22]
[1755594375401,509.26,181.44,181.39,2.22]
[1755594375604,509.26,181.44,181.4,2.22]
[1755594375805,138.28,181.43,181.36,3.67960433]
[1755594375995,138.28,181.43,181.35,5.89960433]
[1755594376201,2.98,181.42,181.32,3.67960433]
[1755594376395,2.98,181.42,181.31,2.22]
[1755594376703,2.98,181.4,181.27,5.89960433]
[1755594376904,2.98,181.38,181.27,5.89960433]
[1755594377206,138.32,181.37,181.27,5.89960433]
[1755594377606,2.98,181.36,181.27,5.89960433]
[1755594377796,141.28,181.36,181.24,3.67960433]
[1755594378209,2.98,181.35,181.24,3.67960433]
[1755594378403,2.98,181.35,181.23,2.22]
[1755594378708,2.98,181.35,181.1,137.6]
[1755594378709,2.98,181.32,181.19,5.89960433]
[1755594378909,2.98,181.32,181.19,11.41650433]
[1755594379607,2.98,181.32,181.2,2.22]
[1755594379803,138.36,181.34,181.28,3.67960433]
[1755594380105,2.98,181.39,181.28,3.67960433]
[1755594380305,2.98,181.42,181.31,3.67960433]
[1755594380604,2.98,181.4,181.3,3.67960433]
[1755594381599,2.98,181.4,181.29,2.22]
[1755594381805,2.98,181.4,181.27,3.67960433]
[1755594382211,2.98,181.38,181.27,3.67960433]
[1755594382407,2.98,181.38,181.25,2.22]
[1755594382896,2.98,181.38,181.25,7.735]
[1755594383100,2.98,181.38,181.26,2.21]
[1755594383805,138.62,181.37,181.27,2.21]
[1755594383994,138.62,181.37,181.28,5.5142]
[1755594384200,138.62,181.37,181.27,2.21]
[1755594384606,2.98,181.38,181.3,2.21]
[1755594384806,138.68,181.39,181.3,2.21]
[1755594385109,3.01,181.42,181.3,7.7234]
[1755594385297,3.01,181.39,181.3,2.21]
[1755594385904,138.66,181.38,181.3,2.21]
[1755594386105,141.65,181.39,181.3,2.21]
[1755594386305,3.01,181.39,181.3,2.21]
[1755594386498,138.66,181.38,181.3,2.21]
[1755594386898,138.64,181.38,181.3,2.21]
[1755594388009,138.62,181.37,181.3,2.21]
[1755594389010,3.01,181.39,181.3,2.21]
[1755594389210,138.56,181.37,181.3,2.21]
[1755594389412,3.01,181.39,181.3,2.21]
[1755594389613,138.5,181.38,181.26,7.88736318]
[1755594389813,3.01,181.39,181.26,7.88736318]
[1755594390111,138.46,181.38,181.27,2.21]
[1755594390612,138.44,181.37,181.27,2.21]
[1755594390813,138.42,181.37,181.27,2.21]
[1755594391210,138.42,181.37,181.29,5.5139]
[1755594391410,138.42,181.37,181.27,2.21]
[1755594391604,3.01,181.36,181.27,2.21]
[1755594392202,138.38,181.35,181.23,5.67736318]
[1755594392409,3.01,181.34,181.22,2.21]
[1755594393514,3.01,181.32,181.22,2.21]
[1755594393716,138.42,181.31,181.22,2.21]
[1755594395011,3.01,181.3,181.19,2.21]
[1755594396725,3.01,181.28,181.15,2.21]
[1755594396925,3.01,181.28,181.15,7.88736318]
[1755594397120,3.01,181.28,181.19,5.517]
[1755594397321,370.64,181.31,181.2,2.21]
[1755594397732,138.48,181.3,181.21,5.5163]
[1755594397926,370.64,181.31,181.2,2.21]
[1755594398127,138.5,181.3,181.2,2.21]
[1755594398324,370.64,181.31,181.22,5.5159]
[1755594398525,138.48,181.3,181.2,2.21]
[1755594398733,141.47,181.29,181.2,7.7267]
[1755594398936,3.01,181.29,181.2,2.21]
[1755594399231,3.01,181.29,181.23,5.5156]
[1755594399433,509.12,181.31,181.23,2.21]
[1755594399829,138.48,181.3,181.23,2.21]
[1755594400029,138.48,181.3,181.24,5.5155]
[1755594400830,370.64,181.31,181.21,5.67736318]
[1755594401134,3.01,181.38,181.26,2.21]
[1755594401330,138.52,181.37,181.29,5.5137]
[1755594401529,138.52,181.37,181.29,2.21]
[1755594401723,3.01,181.38,181.29,2.21]
[1755594401923,3.01,181.38,181.31,5.5132]
[1755594402328,3.01,181.38,181.29,2.21]
[1755594402528,3.01,181.38,181.3,5.5135]
[1755594402834,138.44,181.37,181.3,5.5135]
[1755594403035,3.01,181.38,181.31,5.5133]
[1755594403331,138.42,181.37,181.31,5.5133]
[1755594403736,3.01,181.38,181.31,5.5133]
[1755594403924,138.42,181.37,181.29,7.7238]
[1755594404128,138.42,181.37,181.29,2.21]
[1755594404332,3.01,181.38,181.29,7.7238]
[1755594404633,138.42,181.37,181.29,7.7238]
[1755594404835,138.42,181.37,181.29,2.21]
[1755594405537,138.46,181.36,181.29,2.21]
[1755594405933,138.5,181.35,181.29,7.7238]
[1755594406434,3.01,181.38,181.29,7.7238]
[1755594406643,138.5,181.37,181.3,5.5137]
[1755594407537,138.5,181.36,181.3,5.5137]
[1755594407739,138.5,181.36,181.29,7.7239]
[1755594407932,138.46,181.35,181.29,7.7239]
[1755594408834,3.01,181.38,181.29,7.7239]
[1755594409032,138.4,181.37,181.29,7.7239]
[1755594409528,3.01,181.38,181.29,7.7239]
[1755594409934,138.4,181.37,181.29,7.7239]
[1755594410129,138.38,181.36,181.29,2.21]
[1755594410329,138.38,181.36,181.29,5.85811538]
[1755594410535,3.01,181.38,181.29,5.85811538]
[1755594410735,138.42,181.37,181.29,5.85811538]
[1755594410936,3.01,181.38,181.29,5.85811538]
[1755594411345,138.4,181.37,181.29,5.85811538]
[1755594412039,3.01,181.38,181.29,5.85811538]
[1755594412640,138.34,181.37,181.29,5.85811538]
[1755594412842,2.87,181.36,181.23,6.71083969]
[1755594413043,2.87,181.36,181.25,3.64811538]
[1755594413240,370.68,181.41,181.31,3.64811538]
[1755594413541,370.68,181.41,181.29,2.22]
[1755594413542,373.55,181.41,181.34,3.64811538]
[1755594413741,139.64,181.4,181.34,5.86811538]
[1755594414546,139.64,181.4,181.34,11.38031538]
[1755594414839,510.26,181.41,181.34,5.86811538]
[1755594415041,2.87,181.4,181.34,5.86811538]
[1755594415844,2.87,181.4,181.34,2.22]
[1755594416136,510.42,181.41,181.35,3.64811538]
[1755594416345,510.42,181.41,181.37,2.22]
[1755594416534,370.68,181.41,181.37,2.22]
[1755594416732,139.76,181.4,181.37,2.22]
[1755594417441,370.68,181.41,181.37,2.22]
[1755594417644,139.76,181.4,181.37,2.22]
[1755594417837,370.68,181.41,181.37,2.22]
[1755594418038,139.7,181.4,181.37,2.22]
[1755594418339,139.7,181.4,181.35,5.86811538]
[1755594418539,139.7,181.4,181.36,2.22]
[1755594419543,139.7,181.4,181.37,2.22]
[1755594420140,139.6,181.39,181.37,2.22]
[1755594420343,373.55,181.41,181.37,2.22]
[1755594420541,139.58,181.4,181.35,3.64811538]
[1755594420741,2.87,181.39,181.35,5.86811538]
[1755594422046,2.87,181.39,181.32,8.13895507]
[1755594422247,2.87,181.39,181.32,3.64811538]
[1755594423748,139.46,181.38,181.32,3.64811538]
[1755594423945,139.46,181.38,181.27,6.12969681]
[1755594423946,2.87,181.37,181.3,3.64811538]
[1755594424143,2.87,181.37,181.27,5.86811538]
[1755594424947,2.87,181.37,181.25,3.64811538]
[1755594425342,3.64811538,181.36,181.25,3.64811538]
[1755594425646,2.87,181.34,181.21,4.49083969]
[1755594425849,2.87,181.34,181.21,3.64811538]
[1755594427048,2.87,181.32,181.22,2.22]
[1755594427453,139.28,181.31,181.25,2.22]
[1755594427645,139.26,181.3,181.24,3.64811538]
[1755594427947,142.13,181.3,181.22,2.22]
[1755594428545,2.87,181.36,181.22,2.22]
[1755594428753,3.64811538,181.37,181.21,3.64811538]
[1755594428754,2.87,181.34,181.24,5.86811538]
[1755594428946,139.3,181.33,181.24,5.86811538]
[1755594429450,139.28,181.32,181.25,2.22]
[1755594429952,2.87,181.39,181.28,2.22]
[1755594430148,139.28,181.38,181.28,2.22]
[1755594430348,139.24,181.37,181.28,2.22]
[1755594430552,2.87,181.39,181.28,2.22]
[1755594430750,139.24,181.38,181.28,2.22]
[1755594431049,139.2,181.37,181.28,2.22]
[1755594431250,142.07,181.37,181.28,2.22]
[1755594431951,139.24,181.36,181.28,2.22]
[1755594432248,2.87,181.37,181.28,2.22]
[1755594432447,139.22,181.36,181.28,2.22]
[1755594432656,2.87,181.37,181.28,2.22]
[1755594432846,139.2,181.36,181.28,2.22]
[1755594433158,139.18,181.35,181.28,2.22]
[1755594434253,2.87,181.37,181.28,2.22]
[1755594434848,139.1,181.36,181.28,2.22]
[1755594435352,139.1,181.36,181.28,7.734]
[1755594435650,2.87,181.37,181.28,7.734]
[1755594435855,2.87,181.37,181.28,2.22]
[1755594436055,139.08,181.36,181.28,2.22]
[1755594436450,139.06,181.35,181.28,2.22]
[1755594436659,141.93,181.35,181.26,7.89462307]
[1755594437050,139.04,181.35,181.27,2.22]
[1755594437246,2.87,181.36,181.27,2.22]
[1755594437452,141.91,181.36,181.27,2.22]
[1755594437846,2.87,181.36,181.28,5.5141]
[1755594438049,2.87,181.36,181.29,2.22]
[1755594438554,2.87,181.4,181.29,2.22]
[1755594438859,2.87,181.38,181.31,0.04202077]
[1755594440351,139.02,181.37,181.31,2.26202077]
[1755594441052,2.87,181.38,181.31,2.26202077]
[1755594441252,141.89,181.38,181.31,2.26202077]
[1755594441454,373.55,181.41,181.31,6.81055332]
[1755594441754,139.1,181.4,181.32,7.733]
[1755594442350,370.68,181.41,181.33,7.7227]
[1755594442551,370.68,181.41,181.33,6.75853255]
[1755594442757,509.84,181.41,181.33,6.75853255]
[1755594443450,370.68,181.41,181.33,6.75853255]
[1755594443758,139.12,181.41,181.34,4.54853255]
[1755594443956,139.12,181.41,181.33,6.75853255]
[1755594445356,2.96,181.42,181.34,2.21]
[1755594445853,2.96,181.42,181.35,5.5121]
[1755594446851,2.96,181.42,181.36,5.5118]
[1755594447051,2.96,181.42,181.38,2.22]
[1755594447953,2.96,181.51,181.38,4.54853255]
[1755594448155,2.96,181.46,181.39,2.22]
[1755594448350,370.5,181.54,181.41,5.5103]
[1755594448661,2.96,181.49,181.39,2.22]
[1755594448862,2.96,181.49,181.39,7.7308]
[1755594449758,138.86,181.48,181.39,2.22]
[1755594449954,2.96,181.47,181.39,2.22]
[1755594450360,141.82,181.47,181.39,2.22]
[1755594450757,2.96,181.46,181.36,5.67462307]
[1755594451063,2.96,181.46,181.36,12.44315562]
[1755594451263,2.96,181.46,181.36,7.89462307]
[1755594451565,2.96,181.46,181.37,5.5115]
[1755594451864,2.96,181.46,181.36,7.89462307]
[1755594452165,141.74,181.46,181.37,7.7313]
[1755594452554,138.78,181.46,181.37,7.7313]
[1755594452759,2.96,181.45,181.35,6.76853255]
[1755594453366,2.96,181.45,181.36,5.5117]
[1755594453753,2.96,181.45,181.35,7.7319]
[1755594453960,2.96,181.45,181.35,2.22]
[1755594454361,0.95937806,181.53,181.36,3.64519853]
[1755594454557,2.96,181.57,181.46,3.64519853]
[1755594454763,2.96,181.57,181.49,3.64519853]
[1755594455361,2.96,181.62,181.52,3.64519853]
[1755594455563,143.54,181.62,181.52,3.64519853]
[1755594455869,143.58,181.62,181.52,3.64519853]
[1755594456054,2.96,181.62,181.55,3.64519853]